Cogmind - Beta 9.6 @@@ ROGUE MODE // 2020.08.29 @ 20:11:38 Player: octapi Result: Destroyed by G-50 Soldier with Heavy Laser Performance ------------- Evolutions (5) 2500 Regions Visited (12) 2400 Robots Destroyed (153) 765 Value Destroyed (6399) 6399 Prototype IDs (27) 540 Alien Tech Used (0) 0 Bonus (1419) 1419 TOTAL SCORE: 14023 Bonus ------- High Alert Combat Kills 558 Follower Combat Kills 165 Entered Garrisons 200 Used RIF Installer 500 Aligned with FarCom 300 Friendly Fire -304 Cogmind --------- Core Integrity 0/1000 Matter 96/300 Energy 98/100 System Corruption 18% Temperature Cool (9) Movement Core (50) Location -5/Upper Caves Parts ------- > --- POWER (2) -------- (None) > --- PROPULSION (4) --- Gyrokinetic Inverter > --- UTILITY (9) ------ Advanced Signal Interpreter > --- WEAPON (2) ------- (None) > --- INVENTORY (4) ---- XL Autogun Array Peak State ------------ > --- POWER ------------ Cooled Deuterium Engine Antimatter Reactor > --- PROPULSION ------- Medium Treads Improved Medium Treads Heavy Treads > --- UTILITY ---------- Improved Coolant Injector Large Storage Unit Large Storage Unit High-capacity Storage Unit High-capacity Storage Unit Advanced Signal Interpreter Damper Plating > --- WEAPON ----------- Force Rifle Heavy Phase Cannon > --- INVENTORY -------- Micro Fission Core Advanced Heat Sink Advanced Heat Sink Advanced Cooling System High-capacity Matter Pod Long-range Sensor Array Long-range Terrain Scanner Advanced Terrain Scan Processor Matter Filter Improved Kinecellerator Improved Weapon Cycler Improved Utility Shielding Improved Light Armor Plating Layered Heavy Armor Plating Relay Coupler [NC] Relay Coupler [Grunt] Relay Coupler [Hunter] Heavy Proton Cannon Cooled Particle Cannon Advanced Plasma Cannon Guided Plasma Cannon Flak Gun KE Penetrator XL Autogun Array Improved Remote Datajack Thunder Hammer Deploy-a-Sentry [Rating: 92] Favorites ----------- Power Light Deuterium Engine Engine Light Deuterium Engine Power Core Nuclear Core Reactor Antimatter Reactor Propulsion Light Treads Treads Light Treads Leg Carbon-fiber Leg Hover Unit Gyrokinetic Inverter Utility High-capacity Storage Unit Device Improved Heat Sink Storage High-capacity Storage Unit Processor Advanced Signal Interpreter Hackware Relay Coupler [NC] Protection Improved Light Armor Plating Weapon Advanced Plasma Cannon Energy Gun Shock Rifle Energy Cannon Advanced Plasma Cannon Ballistic Gun Gauss Rifle Ballistic Cannon Battle Cannon Launcher Improved Grenade Launcher Special Weapon Improved Remote Datajack Impact Weapon Great Maul Build | -11 -10 -10 -10 -9 -8 -7 -6 -6 -5 -5 -5 -5 ------- Run | Scr Mat Min Exi Min Mat Fac Fac Gar Fac Was Fac Upp Slots Evolved 10 | . . . . . 4 2 2 . 2 . . . Power 1 | . . . . . . . . . 1 . . . Propulsion 2 | . . . . . 1 . 1 . . . . . Utility 7 | . . . . . 3 2 1 . 1 . . . Weapon . | . . . . . . . . . . . . . Parts Attached 190 | 3 5 10 1 . 34 36 15 30 20 6 30 . Power 14 | . . 1 . . 3 3 1 1 3 1 1 . Engine 9 | . . 1 . . 2 2 1 1 2 . . . Core 4 | . . . . . 1 1 . . 1 . 1 . Reactor 1 | . . . . . . . . . . 1 . . Propulsion 26 | 2 . . 1 . 5 3 2 6 5 1 1 . Treads 16 | 2 . . 1 . 3 3 1 . 5 1 . . Leg 9 | . . . . . 2 . 1 6 . . . . Wheel . | . . . . . . . . . . . . . Hover 1 | . . . . . . . . . . . 1 . Flight . | . . . . . . . . . . . . . Utility 67 | . 3 2 . . 5 11 10 10 9 2 15 . Device 25 | . 1 1 . . 2 1 3 5 4 . 8 . Storage 6 | . 2 1 . . 1 . 1 1 . . . . Processor 1 | . . . . . . . 1 . . . . . Hackware 3 | . . . . . . . . . . 1 2 . Protection 32 | . . . . . 2 10 5 4 5 1 5 . Artifact . | . . . . . . . . . . . . . Weapon 83 | 1 2 7 . . 21 19 2 13 3 2 13 . Energy Gun 20 | 1 1 3 . . 5 6 . 2 1 . 1 . Energy Cannon 29 | . . . . . 6 7 . 8 2 . 6 . Ballistic Gun 17 | . 1 1 . . 2 6 1 2 . 1 3 . Ballistic Cannon 1 | . . . . . 1 . . . . . . . Launcher 10 | . . 2 . . 5 . 1 1 . . 1 . Special Weapon 3 | . . . . . . . . . . 1 2 . Impact Weapon 3 | . . 1 . . 2 . . . . . . . Slashing Weapon . | . . . . . . . . . . . . . Piercing Weapon . | . . . . . . . . . . . . . Special Melee Weapon . | . . . . . . . . . . . . . Unidentified Prototypes 5 | . . . . . 1 2 . . 2 . . . Parts Lost 54 | . 1 1 . . 11 11 2 4 5 . 19 . Power 7 | . . . . . 1 2 . . 1 . 3 . Propulsion 12 | . . . . . 2 3 . 1 3 . 3 . Utility 14 | . . . . . 2 2 2 1 . . 7 . Weapon 21 | . 1 1 . . 6 4 . 2 1 . 6 . Highest Loss Streak 14 | . 1 1 . . 9 6 1 3 2 . 14 . Average Slot Usage (%) 94 | . 95 99 100 100 97 96 89 99 93 84 82 11 Engine 8 | . 14 13 14 14 3 6 6 6 8 8 4 . Treads 18 | . 28 28 28 28 19 21 12 1 13 13 15 . Leg 4 | . . . . . 6 . 3 23 8 . . . Device 6 | . 1 . . . 8 7 12 11 9 . 4 . Storage 24 | . 22 28 28 28 27 23 20 25 23 23 21 . Processor 2 | . . . . . . . 5 6 5 5 5 5 Protection 8 | . . . . . 9 20 12 7 8 11 4 . Energy Gun 6 | . 17 15 14 14 4 6 . 3 2 . 1 . Energy Cannon 3 | . . . . . 5 3 6 6 8 . 5 . Ballistic Gun 3 | . 10 5 . . 6 3 5 1 . 4 . . Impact Weapon 2 | . . 6 14 14 . . . . . . . . Naked Turns . | . . . . . . . . . . . . . Heaviest Build 183 | 10 55 60 60 60 108 114 110 134 161 153 183 . Greatest Support 128 | 40 40 40 42 42 62 62 42 65 108 128 128 3 Greatest Overweight (x) 5 | . 1 1 1 1 4 2 5 3 2 2 1 . Average Overweight (x) 1 | . . 1 1 1 2 1 2 1 1 1 . . Largest Inventory Capacity 32 | 6 18 18 18 18 26 26 26 32 32 32 32 4 Average Capacity 25 | 6 14 17 18 18 26 26 26 31 32 32 30 4 Most Carried 32 | 6 11 18 18 18 26 26 26 32 32 32 32 4 Average Carried 23 | 6 8 15 17 18 20 25 25 31 31 31 29 4 Final Capacity 32 | 6 18 18 18 18 26 26 26 32 32 32 4 4 Final Carried 32 | 6 11 17 18 18 26 23 26 32 32 32 4 4 Class Distribution -------------------- 68% | Hauler-Mutant 29% | Mutant Dominant Class ---------------- Mutant | -10/Materials Mutant | -10/Mines Mutant | -10/Exiles Mutant | -9/Mines Hauler-Mutant | -8/Materials Hauler-Mutant | -7/Factory Hauler-Mutant | -6/Factory Hauler-Mutant | -6/Garrison Hauler-Mutant | -5/Factory Hauler-Mutant | -5/Waste Hauler-Mutant | -5/Factory Mutant | -5/Upper Caves Resources | -11 -10 -10 -10 -9 -8 -7 -6 -6 -5 -5 -5 -5 ----------- Run | Scr Mat Min Exi Min Mat Fac Fac Gar Fac Was Fac Upp Matter Collected 2923 | 223 135 285 . . 588 564 185 425 198 88 192 40 Remotely . | . . . . . . . . . . . . . Salvage Created 6731 | . 428 124 . . 1388 1517 230 1179 1066 . 799 . Parts 301 | . 27 15 . . 71 62 11 41 45 . 29 . Haulers Intercepted 4 | . 1 . . . 1 1 . . 1 . . . Recyclers Shooed 4 | . 1 . . . . 2 . . 1 . . . Parts Field Recycled . | . . . . . . . . . . . . . Retrieved Matter . | . . . . . . . . . . . . . Parts Self-Destructed . | . . . . . . . . . . . . . Prevented . | . . . . . . . . . . . . . Kills | -11 -10 -10 -10 -9 -8 -7 -6 -6 -5 -5 -5 -5 ------- Run | Scr Mat Min Exi Min Mat Fac Fac Gar Fac Was Fac Upp Combat Hostiles Destroyed 120 | . 9 7 . . 25 25 5 22 11 . 16 . Guns 45 | . 9 2 . . 6 16 . 6 3 . 3 . Cannons 44 | . . . . . 8 6 2 13 5 . 10 . AOE 24 | . . 5 . . 11 1 3 2 . . 2 . Classes Destroyed 13 | . 5 . . . 4 1 . 1 1 . 1 . Worker 4 | . . . . . 1 . . . 1 . 2 . Builder 2 | . . . . . 1 . 1 . . . . . Hauler 4 | . 1 . . . 1 1 . . 1 . . . Recycler 9 | . 1 . . . 3 3 1 . 1 . . . Watcher 12 | . 2 . . . 4 1 . . 5 . . . Swarmer 27 | . 3 5 . . 5 4 3 5 . . 2 . Grunt 60 | . 6 2 . . 14 15 . 12 4 . 7 . Brawler 4 | . . . . . 1 . . 1 . . 2 . Duelist 1 | . . . . . . . . . . . 1 . Sentry 13 | . . . . . 7 2 1 3 . . . . Hunter 4 | . . . . . . . . . 2 . 2 . Programmer 12 | . . . . . . 4 1 . 5 . 2 . Behemoth 1 | . . . . . . . . 1 . . . . Best Kill Streak 6 | . 5 3 . . 6 4 5 4 3 . 5 . Combat Bots Only 5 | . 5 3 . . 4 3 3 4 3 . 5 . Max Kills in Single Turn 5 | . 1 3 . . 5 2 4 1 1 . 2 . Gunslinging . | . . . . . . . . . . . . . Exploded 3 | . . 3 . . 3 1 2 1 . . 2 . Melee . | . . . . . . . . . . . . . Uniques/NPCs Destroyed . | . . . . . . . . . . . . . Combat | -11 -10 -10 -10 -9 -8 -7 -6 -6 -5 -5 -5 -5 -------- Run | Scr Mat Min Exi Min Mat Fac Fac Gar Fac Was Fac Upp Damage Taken 11521 | . 301 133 . . 1738 1986 370 1261 1695 . 3858 179 Core 1547 | . 21 22 . . 188 166 65 78 184 . 662 161 Absorbed by Shields 40 | . . . . . . . . 40 . . . . Core Remaining (%) 81 | 100 . . . 82 65 76 . 83 . . . . Volleys Fired 472 | . 44 8 . . 72 83 7 136 57 2 63 . Largest 2 | . 2 2 . . 2 2 2 2 2 1 2 . Hottest 196 | . 85 70 . . 125 115 101 196 196 40 196 . Shots Fired 802 | . 87 12 . . 123 163 13 180 113 2 109 . Gun 369 | . 87 8 . . 60 109 4 43 23 . 35 . Cannon 400 | . . . . . 50 54 6 134 90 . 66 . Launcher 25 | . . 4 . . 13 . 3 3 . . 2 . Special 8 | . . . . . . . . . . 2 6 . Kinetic 188 | . 34 4 . . 47 55 4 24 . . 20 . Thermal 486 | . 44 . . . 52 54 6 153 113 . 64 . Explosive 25 | . . 4 . . 13 . 3 3 . . 2 . Electromagnetic 95 | . 9 4 . . 11 54 . . . . 17 . Robot Hit Streak 23 | . 13 2 . . 10 23 17 14 9 5 11 . Robot Miss Streak 6 | . 6 2 . . 5 4 1 5 2 . 4 . Penetration Max 1 | . . . . . . 1 . 1 . . . . Secondary Targets 6 | . 3 . . . . . . 1 . . 2 . Max Gunslinging Chain 1 | . 1 . . . . . . 1 . . 1 . Shots Hit Robots 494 | . 55 4 . . 68 136 9 73 76 2 71 . Core Hits 284 | . 22 9 . . 57 61 16 44 32 . 43 . Critical Hits 5 | . . . . . 1 1 . 1 1 . 1 . Critical Kills 1 | . . . . . . . . 1 . . . . Critical Parts Destroyed 4 | . . . . . 1 1 . . 1 . 1 . Melee Attacks 11 | . . 4 . . 7 . . . . . . . Impact 11 | . . 4 . . 7 . . . . . . . Slashing . | . . . . . . . . . . . . . Piercing . | . . . . . . . . . . . . . Sneak Attacks . | . . . . . . . . . . . . . Combat Hostiles . | . . . . . . . . . . . . . Follow-up Attacks . | . . . . . . . . . . . . . Damage Inflicted 16135 | . 712 287 . . 2614 3271 676 3217 2624 . 2734 . Guns 4712 | . 712 62 . . 527 1759 48 570 408 . 626 . Cannons 8223 | . . . . . 879 1248 139 2386 2160 . 1411 . Explosions 3186 | . . 225 . . 1208 258 489 261 56 . 689 . Melee . | . . . . . . . . . . . . . Ramming 14 | . . . . . . 6 . . . . 8 . Kinetic 2042 | . 137 10 . . 324 833 48 359 . . 331 . Thermal 9814 | . 484 . . . 918 1506 139 2597 2568 . 1602 . Explosive 2473 | . . 225 . . 1208 . 489 261 . . 290 . Electromagnetic 1792 | . 91 52 . . 164 926 . . 56 . 503 . Impact . | . . . . . . . . . . . . . Slashing . | . . . . . . . . . . . . . Piercing . | . . . . . . . . . . . . . Highest Corruption 18 | . . . . . . 2 . . 18 18 18 18 Average Corruption 9 | . . . . . . 1 . . 5 18 18 18 Corruption Purged . | . . . . . . . . . . . . . Effects 151 | . . . . . . 12 . . 31 11 89 8 Message Errors 26 | . . . . . . 3 . . 7 4 9 3 Matter Fused 17 | . . . . . . . . . 3 2 11 1 Heat Flow Errors 13 | . . . . . . 1 . . . . 12 . Energy Discharges 12 | . . . . . . 1 . . 4 . 7 . Parts Rejected 2 | . . . . . . . . . 1 . 1 . Data Loss (minor) 14 | . . . . . . 3 . . 5 2 4 . Data Loss (major) 4 | . . . . . . . . . . . 3 1 Misfires 2 | . . . . . . . . . . . 2 . Alerts 2 | . . . . . . . . . 1 1 . . Misdirections 21 | . . . . . . . . . 2 1 15 3 Targeting Errors 36 | . . . . . . 4 . . 8 1 23 . Weapon Failures 2 | . . . . . . . . . . . 2 . Overload Shots . | . . . . . . . . . . . . . Overflow Damage 454 | . . 4 . . 69 49 13 100 56 . 163 . Projectiles 218 | . . . . . 11 41 . 94 53 . 19 . Explosions 236 | . . 4 . . 58 8 13 6 3 . 144 . Melee . | . . . . . . . . . . . . . Knockbacks . | . . . . . . . . . . . . . Impact . | . . . . . . . . . . . . . Kinetic . | . . . . . . . . . . . . . Secondary . | . . . . . . . . . . . . . Self-Inflicted Damage 335 | . . 22 . . 102 147 6 8 13 . 37 . Shots 12 | . . 1 . . 4 3 1 1 1 . 1 . Rammed 3 | . . . . . . 1 . . . . 2 . Targets Rammed 3 | . . . . . . 1 . . . . 2 . Kicked . | . . . . . . . . . . . . . Crushed . | . . . . . . . . . . . . . Highest Temperature 535 | . 266 76 . . 505 174 . 243 345 44 535 . Average Temperature 103 | . 72 45 . . 195 30 . 41 117 21 129 . Received Heat Transfer 3015 | . 135 18 . . 765 567 30 429 144 . 852 75 Effects 17 | . . . . . 4 . . . 4 . 9 . Shutdowns 5 | . . . . . 1 . . . . . 4 . Energy Bleed 3 | . . . . . . . . . 1 . 2 . Interference 4 | . . . . . . . . . 3 . 1 . Matter Decay 1 | . . . . . 1 . . . . . . . Short Circuit 1 | . . . . . . . . . . . 1 . Damage (minor) 3 | . . . . . 2 . . . . . 1 . Siege Activations . | . . . . . . . . . . . . . Robots Corrupted 3 | . . . . . . 2 . . . . 1 . Combat Hostiles 3 | . . . . . . 2 . . . . 1 . Parts Fried 13 | . . . . . . 8 . . 1 . 4 . Impact Corruptions . | . . . . . . . . . . . . . Robots Melted 4 | . . . . . . . . 1 3 . . . Combat Hostiles 4 | . . . . . . . . 1 3 . . . Parts Melted 33 | . . . . . 1 5 . 8 16 . 3 . Heat Transferred 14683 | . 1137 . . . 1406 1804 185 4697 3655 . 1799 . Parts Sabotaged . | . . . . . . . . . . . . . Parts Stolen . | . . . . . . . . . . . . . Parts Stripped . | . . . . . . . . . . . . . Power Chain Reactions 4 | . . . . . . 3 . . . . 1 . Missiles Intercepted . | . . . . . . . . . . . . . Alert | -11 -10 -10 -10 -9 -8 -7 -6 -6 -5 -5 -5 -5 ------- Run | Scr Mat Min Exi Min Mat Fac Fac Gar Fac Was Fac Upp Peak Influence 1231 | . 242 106 . . 447 268 166 1231 788 223 327 . Average Influence 270 | . 90 37 . . 286 118 77 704 654 223 170 . Maximum Alert Level 4 | . 1 . . . 2 1 . 4 3 1 1 . Low Security (%) 59 | 100 93 100 . 100 21 87 100 12 . . 77 . Level 1 16 | . 6 . . . 70 12 . 9 . 100 22 . Level 2 15 | . . . . . 8 . . 32 83 . . . Level 3 6 | . . . . . . . . 33 16 . . . Level 4 1 | . . . . . . . . 11 . . . . Level 5 . | . . . . . . . . . . . . . High Security . | . . . . . . . . . . . . . Max Security . | . . . . . . . . . . . . . Squads Dispatched 25 | . 1 1 . . 5 7 1 . 3 . 7 . Investigation 4 | . . 1 . . 1 2 . . . . . . Extermination 6 | . . . . . . 3 1 . 1 . 1 . Reinforcement 13 | . 1 . . . 4 2 . . 1 . 5 . Assault 1 | . . . . . . . . . 1 . . . Garrison 1 | . . . . . . . . . . . 1 . Intercept . | . . . . . . . . . . . . . Construction Impeded 5 | . . . . . 1 . . . 1 . 3 . Haulers Reinforced . | . . . . . . . . . . . . . Stealth | -11 -10 -10 -10 -9 -8 -7 -6 -6 -5 -5 -5 -5 --------- Run | Scr Mat Min Exi Min Mat Fac Fac Gar Fac Was Fac Upp Distress Signals 10 | . 3 . . . 5 . . . 1 . 1 . Communications Jammed . | . . . . . . . . . . . . . Distress Signals . | . . . . . . . . . . . . . Times Spotted 223 | . 24 8 . . 40 36 5 31 21 1 46 11 Peak Tracking Total 17 | . 5 3 . . 6 4 3 6 4 1 17 10 Tactical Retreats 24 | . 3 . . . 6 1 . 7 . . 6 1 Traps | -11 -10 -10 -10 -9 -8 -7 -6 -6 -5 -5 -5 -5 ------- Run | Scr Mat Min Exi Min Mat Fac Fac Gar Fac Was Fac Upp Traps Triggered 9 | . . . . . . . 3 4 2 . . . Indirectly . | . . . . . . . . . . . . . Trap Hack Attempts . | . . . . . . . . . . . . . Triggered . | . . . . . . . . . . . . . Disarmed . | . . . . . . . . . . . . . Reprogrammed . | . . . . . . . . . . . . . Reused . | . . . . . . . . . . . . . Traps Extracted . | . . . . . . . . . . . . . Installed . | . . . . . . . . . . . . . Triggered . | . . . . . . . . . . . . . Machines | -11 -10 -10 -10 -9 -8 -7 -6 -6 -5 -5 -5 -5 ---------- Run | Scr Mat Min Exi Min Mat Fac Fac Gar Fac Was Fac Upp Machines Disabled 22 | . . . . . 3 2 . 8 3 . 6 . Max in Single Turn 6 | . . . . . 1 1 . 2 1 . 6 . Garrison Access 1 | . . . . . . . . . 1 . . . Garrison Relay 2 | . . . . . . . . 2 . . . . Phase Generator 1 | . . . . . . . . 1 . . . . Machines Sabotaged . | . . . . . . . . . . . . . Garrisons Compromised . | . . . . . . . . . . . . . Overloaded Fab Kills . | . . . . . . . . . . . . . Fab Network Shutdowns . | . . . . . . . . . . . . . Hacking | -11 -10 -10 -10 -9 -8 -7 -6 -6 -5 -5 -5 -5 --------- Run | Scr Mat Min Exi Min Mat Fac Fac Gar Fac Was Fac Upp Machines Accessed 24 | . 4 3 2 . 6 5 2 . 1 . 1 . Terminals 14 | . 4 1 . . 6 2 1 . . . . . Fabricators 1 | . . . . . . 1 . . . . . . Repair Stations 2 | . . . . . . 1 . . . . 1 . Recycling Units . | . . . . . . . . . . . . . Scanalyzers . | . . . . . . . . . . . . . Garrison Access 3 | . . . . . . 1 1 . 1 . . . Total Hacks 53 | . 12 4 2 . 16 12 3 . 2 . 2 . Successful 24 | . 6 4 2 . 7 2 1 . 2 . . . Failed 29 | . 6 . . . 9 10 2 . . . 2 . Catastrophic 7 | . 2 . . . 3 1 1 . . . . . Database Lockouts . | . . . . . . . . . . . . . Manual 25 | . 9 . 1 . 13 . 2 . . . . . Terminals 37 | . 12 2 . . 16 5 2 . . . . . Fabricators 3 | . . . . . . 3 . . . . . . Repair Stations 5 | . . . . . . 3 . . . . 2 . Recycling Units . | . . . . . . . . . . . . . Scanalyzers . | . . . . . . . . . . . . . Garrison Access 4 | . . . . . . 1 1 . 2 . . . Terminal Hacks 13 | . 3 4 2 . 4 . . . . . . . Record 2 | . . 1 1 . . . . . . . . . Open Door 2 | . . 2 . . . . . . . . . . Branch Access Points 1 | . . . . . 1 . . . . . . . Alert Level 1 | . . . . . 1 . . . . . . . Unreport Threat 1 | . . . . . 1 . . . . . . . Locate Traps 2 | . 2 . . . . . . . . . . . Registered Components 2 | . 1 . . . 1 . . . . . . . Zone Layout 1 | . . 1 . . . . . . . . . . EX-Prototype ID Bank 1 | . . . 1 . . . . . . . . . Fabricator Hacks . | . . . . . . . . . . . . . Repair Station Hacks 2 | . . . . . . 2 . . . . . . Scan Component 1 | . . . . . . 1 . . . . . . Repair 1 | . . . . . . 1 . . . . . . Recycling Unit Hacks . | . . . . . . . . . . . . . Scanalyzer . | . . . . . . . . . . . . . Garrison Access Hacks 3 | . . . . . . . 1 . 2 . . . Unlock Access 1 | . . . . . . . 1 . . . . . Seal Access 1 | . . . . . . . . . 1 . . . Coupler Status 1 | . . . . . . . . . 1 . . . Unauthorized Hacks 6 | . 3 . . . 3 . . . . . . . Terminals 6 | . 3 . . . 3 . . . . . . . Track 6 | . 3 . . . 3 . . . . . . . Fabricators . | . . . . . . . . . . . . . Repair Stations . | . . . . . . . . . . . . . Recycling Units . | . . . . . . . . . . . . . Scanalyzers . | . . . . . . . . . . . . . Garrison Access . | . . . . . . . . . . . . . Data Cores Recovered . | . . . . . . . . . . . . . Used . | . . . . . . . . . . . . . Hacking Detections 20 | . 4 1 . . 6 5 2 . 1 . 1 . Full Trace Events 4 | . 1 . . . 1 2 . . . . . . Feedback Events . | . . . . . . . . . . . . . Feedback Blocked . | . . . . . . . . . . . . . Robot Schematics Acquired . | . . . . . . . . . . . . . Robots Built . | . . . . . . . . . . . . . Matter . | . . . . . . . . . . . . . Time . | . . . . . . . . . . . . . Total Robot Build Rating . | . . . . . . . . . . . . . Part Schematics Acquired . | . . . . . . . . . . . . . Parts Built . | . . . . . . . . . . . . . Matter . | . . . . . . . . . . . . . Time . | . . . . . . . . . . . . . Total Part Build Rating . | . . . . . . . . . . . . . Parts Repaired 1 | . . . . . . 1 . . . . . . Time 38 | . . . . . . 38 . . . . . . Parts Recycled . | . . . . . . . . . . . . . Recycled Matter . | . . . . . . . . . . . . . Retrieved Matter . | . . . . . . . . . . . . . Retrieved Components . | . . . . . . . . . . . . . Parts Scanalyzed . | . . . . . . . . . . . . . Part Schematics Acquired . | . . . . . . . . . . . . . Parts Damaged . | . . . . . . . . . . . . . Bothacking | -11 -10 -10 -10 -9 -8 -7 -6 -6 -5 -5 -5 -5 ------------ Run | Scr Mat Min Exi Min Mat Fac Fac Gar Fac Was Fac Upp Used RIF Installer 1 | . . . . . . . . 1 . . . . Robots Hacked 7 | . . . . . . . . . . 1 6 . Non-combat 4 | . . . . . . . . . . . 4 . Combat 3 | . . . . . . . . . . 1 2 . Robot Hacks Applied 8 | . . . . . . . . . . 2 6 . parse_system 2 | . . . . . . . . . . 1 1 . start_evac 2 | . . . . . . . . . . . 2 . map_earth 1 | . . . . . . . . . . . 1 . ignore_targets 1 | . . . . . . . . . . 1 . . formatsys_high 2 | . . . . . . . . . . . 2 . Relay Couplers Released 10 | . . . . . . . . 10 . . . . Machine Destruction 10 | . . . . . . . . 10 . . . . Attached 3 | . . . . . . . . . . 1 2 . Robots Rewired . | . . . . . . . . . . . . . Allies Hacked . | . . . . . . . . . . . . . Hacks Repelled . | . . . . . . . . . . . . . Allies | -11 -10 -10 -10 -9 -8 -7 -6 -6 -5 -5 -5 -5 -------- Run | Scr Mat Min Exi Min Mat Fac Fac Gar Fac Was Fac Upp Total Allies 6 | . . 4 . . . . . . . . 2 . Largest Group 4 | . . 4 3 3 3 . . . . . 1 . Highest-Rated Group 71 | . . 71 40 40 40 . . . . . 29 . Highest-Rated Ally 31 | . . 31 16 16 16 . . . . . 29 . Total Orders 3 | . . . . . 3 . . . . . . . STAY 3 | . . . . . 3 . . . . . . . Ally Attacks 24 | . . . . . 9 . . 13 . . 2 . Total Damage 883 | . . . . . 76 . . 700 . . 107 . Kills 7 | . . . . . 2 . . 5 . . . . Allies Corrupted . | . . . . . . . . . . . . . Allies Melted . | . . . . . . . . . . . . . Turrets Deployed 2 | . . . . . . . . 1 . . 1 . Intel | -11 -10 -10 -10 -9 -8 -7 -6 -6 -5 -5 -5 -5 ------- Run | Scr Mat Min Exi Min Mat Fac Fac Gar Fac Was Fac Upp Robot Analysis Total . | . . . . . . . . . . . . . Derelict Logs Recovered 1 | . . . . 1 . . . . . . . . Drone Launches . | . . . . . . . . . . . . . Drone Recoveries . | . . . . . . . . . . . . . Exploration | -11 -10 -10 -10 -9 -8 -7 -6 -6 -5 -5 -5 -5 ------------- Run | Scr Mat Min Exi Min Mat Fac Fac Gar Fac Was Fac Upp Turns Passed 11238 | 8 778 1273 844 196 1230 1973 900 1337 1268 176 1144 111 Spaces Moved 5128 | 3 339 655 438 114 426 851 438 502 537 85 518 222 Core 338 | . . . . . . . . . . . 116 222 Treads 4132 | 3 339 655 438 114 426 851 438 49 332 85 402 . Legs 658 | . . . . . . . . 453 205 . . . Wheels . | . . . . . . . . . . . . . Hover . | . . . . . . . . . . . . . Flight . | . . . . . . . . . . . . . Fastest Speed 50 | 160 160 180 172 172 175 175 192 150 150 180 50 50 Average Speed 170 | 160 171 180 177 172 192 177 192 163 181 190 150 50 Slowest Speed 260 | 160 180 180 180 172 225 200 260 210 200 200 180 50 Overloaded Moves . | . . . . . . . . . . . . . Propulsion Burnouts . | . . . . . . . . . . . . . Robots Hopped 6 | . . . . . . . . 6 . . . . Cave-ins Triggered . | . . . . . . . . . . . . . Exploration Rate (%) 43 | 2 56 92 71 21 49 26 14 86 15 71 18 38 Regions Visited 12 Branch Regions 4 Pre-discovered Areas 1 | . . . 1 . . . . . . . . . Known Exits Taken 2 | . . . . . . . 1 . . . 1 . Unknown Exits Taken 7 | 1 1 1 1 1 1 1 . . . . . . Scrap Searched 3 | . . 2 . . . . . . . . . 1 Spaces Dug 44 | . . 2 . . 23 . 4 9 1 . 5 . Terrain Destroyed 366 | . . 18 . . 111 18 12 115 16 . 76 . Melee 9 | . . 2 . . 7 . . . . . . . Projectile 65 | . . . . . 12 5 . 14 16 . 18 . AOE 292 | . . 16 . . 92 13 12 101 . . 58 . Actions | -11 -10 -10 -10 -9 -8 -7 -6 -6 -5 -5 -5 -5 --------- Run | Scr Mat Min Exi Min Mat Fac Fac Gar Fac Was Fac Upp Total 6767 | 5 455 729 508 115 692 1147 480 826 717 99 772 222 Wait 759 | . 56 34 56 . 119 148 4 115 82 . 145 . Move 5106 | 2 338 654 437 113 425 850 438 488 537 84 518 222 Hop 6 | . . . . . . . . 6 . . . . Pick Up 103 | . 8 13 6 1 22 12 10 17 8 2 4 . Fast Attach 48 | . 2 1 . . 12 10 6 5 6 2 4 . Attach 47 | . 2 2 . . 8 8 3 4 6 1 13 . Detach 13 | . 1 . . . 1 2 . 3 3 . 3 . Swap 97 | 3 1 7 1 . 15 19 6 21 8 3 13 . Drop 85 | . 3 6 8 1 11 14 6 13 10 5 8 . Fire 472 | . 44 8 . . 72 83 7 136 57 2 63 . Melee 11 | . . 4 . . 7 . . . . . . . Ram . | . . . . . . . . . . . . . Kick . | . . . . . . . . . . . . . Crush 2 | . . . . . . 1 . . . . 1 . Escape Stasis 18 | . . . . . . . . 18 . . . . Rewire . | . . . . . . . . . . . . . Trap . | . . . . . . . . . . . . . Miscellaneous . | . . . . . . . . . . . . . Route ------- -11/Scrapyard -10/Materials (discovered 2 exits: *Min x2) -10/Mines (discovered 3 exits: [*Mat x2] / *Exi) -10/Exiles -9/Mines -8/Materials -7/Factory (discovered 3 exits: *Fac x2 / [*Low]) -6/Factory (discovered 2 exits: *Low / Gar) -6/Garrison (discovered 3 exits: *Fac x3) -5/Factory -5/Waste -5/Factory -5/Upper Caves History --------- Turn | Location | Event 6 | -11/Scrapyard | Discovered new exit (range 1) 9 | -11/Scrapyard | Entered Materials 65 | -10/Materials | Discovered new exit (range 3) 309 | -10/Materials | Build established: Mutant 532 | -10/Materials | Discovered new exit (range 12) 787 | -10/Materials | Entered Mines 805 | -10/Mines | A weapon hastily lodged in a ceiling crevice suddenly fell to the ground 1070 | -10/Mines | Met a Derelict who couldn't figure out how to use a Trap Extractor 1170 | -10/Mines | Met a Derelict shopkeep closing up shop 1251 | -10/Mines | Discovered new exit (range 15) 1336 | -10/Mines | Escorted by a lone wolf Derelict 1471 | -10/Mines | Discovered new exit (range 6) 1798 | -10/Mines | Assisted by bots powering up and referring to "LRC-V3" 2051 | -10/Mines | Deemed a non-threat by the Exiles lab entrance 2051 | -10/Mines | Discovered new exit (range 5) 2060 | -10/Mines | Entered Exiles 2060 | -10/Exiles | Accompanied by 4 allies 2105 | -10/Exiles | Met 8R-AWN 2136 | -10/Exiles | Met EX-HEX 2233 | -10/Exiles | Met EX-DEC 2264 | -10/Exiles | Learned location of Zion (-6) 2521 | -10/Exiles | Met EX-BIN 2548 | -10/Exiles | Aligned with FarCom system 2550 | -10/Exiles | Given EX-Vault access code 2591 | -10/Exiles | Opened EX-Vault 2601 | -10/Exiles | Found Deploy-a-Sentry 2604 | -10/Exiles | Found Deploy-a-Sentry 2607 | -10/Exiles | Found Deploy-a-Sentry 2612 | -10/Exiles | Found Gui. Plasma Cannon 2625 | -10/Exiles | Found XL Autogun Array 2664 | -10/Exiles | Warned to stay clear of 0b10 Research branches 2881 | -10/Exiles | Discovered new exit (range 14) 2904 | -10/Exiles | Stole three prototypes: Gui. Plasma Cannon, XL Autogun Array, Deploy-a-Sentry 2904 | -10/Exiles | Entered Mines 2904 | -9/Mines | Accompanied by 3 allies 2944 | -9/Mines | Received a Rocket Launcher from a helpful Derelict 2954 | -9/Mines | Learned Materials terminal intel 3085 | -9/Mines | Discovered new exit (range 7) 3100 | -9/Mines | Entered Materials 3100 | -8/Materials | Accompanied by 3 allies 3100 | -8/Materials | Evolved 4 slots: Propulsion x1, Utility x3 3101 | -8/Materials | Loaded intel: 12 terminal locations 3402 | -8/Materials | Lost 9 parts (1p2n2u4w) 3412 | -8/Materials | Build established: Hauler-Mutant 4169 | -8/Materials | Discovered new exit (range 16) 4330 | -8/Materials | Entered Factory 4330 | -7/Factory | Evolved 2 slots: Utility x2 4332 | -7/Factory | FarCom data flow suspended 4775 | -7/Factory | Repaired Adv. Treads 4861 | -7/Factory | Discovered new exit (range 4) 5662 | -7/Factory | Discovered new exit (range 12) 5972 | -7/Factory | Discovered new exit (range 6) 6112 | -7/Factory | Lost 6 parts (1p1n1u3w) 6303 | -7/Factory | Entered another Factory area 6303 | -6/Factory | Evolved 2 slots: Propulsion x1, Utility x1 6830 | -6/Factory | Discovered new exit (range 4) 6836 | -6/Factory | Identified exit to Lower Caves 7203 | -6/Factory | Identified exit to Garrison 7203 | -6/Factory | Entered Garrison 7234 | -6/Garrison | Triggered checkpoint 7301 | -6/Garrison | Garrison Relay disabled 7428 | -6/Garrison | Phase Generator disabled 7572 | -6/Garrison | Lost 3 parts (1n1u1w) 7727 | -6/Garrison | Discovered new exit (range 10) 7775 | -6/Garrison | Identified exit to Factory 7864 | -6/Garrison | DAS Turret deployed 7951 | -6/Garrison | Triggered checkpoint 7966 | -6/Garrison | Garrison Relay disabled 8110 | -6/Garrison | Destroyed B-75 Beast 8141 | -6/Garrison | Triggered checkpoint 8181 | -6/Garrison | Triggered checkpoint 8292 | -6/Garrison | Discovered exit to Factory (range 8) 8350 | -6/Garrison | Triggered checkpoint 8492 | -6/Garrison | Discovered exit to Factory (range 13) 8525 | -6/Garrison | Installed Relay Interface Framework 8540 | -6/Garrison | Entered Factory 8540 | -5/Factory | Evolved 2 slots: Power x1, Utility x1 9693 | -5/Factory | System corruption reached 10% 9740 | -5/Factory | First assault squad dispatched 9808 | -5/Factory | Sucked down chute 9808 | -5/Factory | Entered Waste 9808 | -5/Waste | The area was eerily silent 9912 | -5/Waste | Found Damper Plating 9950 | -5/Waste | A Compactor rumbled back to life 9951 | -5/Waste | Spotted C-40 Crusher 9968 | -5/Waste | Discovered new exit (range 10) 9983 | -5/Waste | Identified exit to Factory 9984 | -5/Waste | Entered Factory 11032 | -5/Factory | DAS Turret deployed 11050 | -5/Factory | Garrison activated, responded to threat 11070 | -5/Factory | Core integrity fell below 50% 11092 | -5/Factory | Core integrity fell below 20% 11116 | -5/Factory | Lost 14 parts (2p3n6u3w) 11126 | -5/Factory | Discovered new exit (range 5) 11128 | -5/Factory | Identified exit to Upper Caves 11128 | -5/Factory | Entered Upper Caves 11132 | -5/Upper Caves | Encountered a Warlord checkpoint 11239 | -5/Upper Caves | Destroyed by G-50 Soldier with Heavy Laser Last Messages --------------- 11118_ Acquired Gyrokinetic Inverter. 11126_ EXIT=FOUND 11126_ Slug penetrates Wall. 11128_ EXIT=IDENTIFIED: UPPER CAVES 11128_ Slammed into Y-64 Sentinel. LOCATION=UPPER CAVES GOAL=ESCAPE 11132_ PA-ETB(M): "Estimated chance of a MAIN.C patrol making it through here: 0%. Unless they've got a Behemoth in tow, in which case it's probably closer to 100%." 11135_ GHKIRPXW27RTGI1ZQPP RGW UN6WIVD8O: 11156_ System corrupted: Matter fused (-6). 11170_ Searching scrap... 11170_ Found 40 Matter. 11170_ Found Imp. Propulsion Shielding. 11171_ Acquired 40 matter. 11178_ FC18M&/MK7/,MDSNQPOLY&IQX7#IG1O6JW&EU 11197_ System corrupted: Substantial component data lost. 11237_ BC:B6&Y,ACB>J